Cogmind - Beta 17.1 @@@ ROGUE MODE // 2026.09.13 @ 22:52:50 Player: stixxx Result: Destroyed by S-10 Pest with Light Assault Rifle Performance ------------- Evolutions (2) 1000 Regions Visited (4) 800 Robots Destroyed (20) 100 Value Destroyed (647) 647 Prototype IDs (0) 0 Alien Tech Used (0) 0 Bonus (0) 0 TOTAL SCORE: 2547 Bonus ------- None Cogmind --------- Core Integrity 0/550 Matter 201/300 Energy 99/100 System Corruption 0% Temperature Cool (0) Movement Core (50) Location -8/Materials Parts ------- > --- POWER (1) -------- (None) > --- PROPULSION (4) --- (None) > --- UTILITY (4) ------ Hacking Suite > --- WEAPON (2) ------- (None) > --- INVENTORY (5) ---- Improved Heat Sink Particle Charger Peak State ------------ > --- POWER ------------ Improved Ion Engine > --- PROPULSION ------- Aluminum Leg Titanium Leg > --- UTILITY ---------- Small Storage Unit Recoil Stabilizer Hacking Suite > --- WEAPON ----------- Autogun Autogun > --- INVENTORY -------- Improved Heat Sink Particle Charger Autogun [Rating: 17] Favorites ----------- Power Ion Engine Engine Ion Engine Propulsion Aluminum Leg Leg Aluminum Leg Utility Small Storage Unit Device Recoil Stabilizer Storage Small Storage Unit Hackware Hacking Suite Weapon Autogun Energy Cannon Light EM Pulse Cannon Ballistic Gun Autogun Ballistic Cannon Slug Cannon Build | -11 -10 -10 -9 -8 ------- Run | Yrd Mat Min Mat Mat Slots Evolved 4 | . . . 2 2 Power . | . . . . . Propulsion 2 | . . . 1 1 Utility 2 | . . . 1 1 Weapon . | . . . . . Parts Attached 20 | 6 4 2 1 7 Power 4 | 1 . 1 1 1 Engine 4 | 1 . 1 1 1 Core . | . . . . . Reactor . | . . . . . Propulsion 4 | 2 . . . 2 Treads . | . . . . . Leg 4 | 2 . . . 2 Wheel . | . . . . . Hover . | . . . . . Flight . | . . . . . Utility 3 | 1 . . . 2 Device 1 | . . . . 1 Storage 1 | 1 . . . . Processor . | . . . . . Hackware 1 | . . . . 1 Protection . | . . . . . Artifact . | . . . . . Weapon 9 | 2 4 1 . 2 Energy Gun . | . . . . . Energy Cannon 2 | . 2 . . . Ballistic Gun 6 | 2 2 . . 2 Ballistic Cannon 1 | . . 1 . . Launcher . | . . . . . Special Weapon . | . . . . . Impact Weapon . | . . . . . Slashing Weapon . | . . . . . Piercing Weapon . | . . . . . Special Melee Weapon . | . . . . . Unidentified Prototypes . | . . . . . Parts Lost 16 | . 3 . 4 9 Power 4 | . 1 . 2 1 Propulsion 4 | . 1 . 1 2 Utility 2 | . . . . 2 Weapon 6 | . 1 . 1 4 Highest Loss Streak 8 | . 3 . 2 8 To Critical Strikes . | . . . . . Average Backups 4 | 1 3 4 6 5 Power . | . 1 1 . . Propulsion . | . . . . . Utility . | . . . . 2 Weapon 3 | . 2 3 5 2 Tool/Special . | . . . . . Unused Backups 4 | . . . . 4 Power . | . . . . . Propulsion . | . . . . . Utility 3 | . . . . 3 Weapon 1 | . . . . 1 Tool/Special . | . . . . . Average Slot Usage (%) 49 | . 82 68 35 29 Engine 8 | . 14 11 6 4 Leg 12 | . 27 14 6 6 Storage 11 | . 14 14 11 7 Energy Cannon 2 | . 11 . . . Ballistic Gun 10 | . 15 26 . 7 Ballistic Cannon 3 | . . . 11 . Peak Build Rating 17 | 6 9 8 8 17 Average Rating 6 | 4 6 7 7 7 On Entrance 4 | . 6 6 8 2 Avg Prop Armor Cover (%) . | . . . . . Naked Turns . | . . . . . Heaviest Build 19 | 12 16 17 17 19 Greatest Support 27 | 20 20 10 10 27 Greatest Overweight (x) 3 | . 1 1 3 1 Average Overweight (x) . | . . 1 1 . Largest Inventory Capacity 8 | 8 8 8 8 8 Average Capacity 7 | 7 8 8 8 7 Most Carried 8 | 5 7 7 7 8 Average Carried 4 | 1 3 4 6 5 Final Capacity 8 | 8 8 8 8 5 Final Carried 7 | 1 5 6 7 2 Class Distribution -------------------- 100% | Mutant Dominant Class ---------------- Mutant | -10/Materials Mutant | -10/Mines Mutant | -9/Materials Mutant | -8/Materials Resources | -11 -10 -10 -9 -8 ----------- Run | Yrd Mat Min Mat Mat Matter Collected 773 | 255 . 45 121 352 Remotely . | . . . . . Salvage Created 678 | . 79 45 74 480 Parts 39 | . 3 6 6 24 Haulers Intercepted . | . . . . . Recyclers Shooed . | . . . . . Parts Field Recycled . | . . . . . Retrieved Matter . | . . . . . Parts Self-Destructed . | . . . . . Prevented . | . . . . . Parts Restored . | . . . . . Kills | -11 -10 -10 -9 -8 ------- Run | Yrd Mat Min Mat Mat Combat Hostiles Destroyed 18 | . 2 3 3 10 Guns 15 | . 2 3 . 10 Cannons 3 | . . . 3 . Classes Destroyed 6 | . 1 1 1 3 Recycler 1 | . . . . 1 Watcher 1 | . . . 1 . Swarmer 6 | . . 3 . 3 Grunt 10 | . 2 . 3 5 Brawler 1 | . . . . 1 Sentry 1 | . . . . 1 Best Kill Streak 5 | . 2 5 2 4 Combat Bots Only 5 | . 2 5 2 4 Max Kills in Single Turn 1 | . 1 1 1 1 Gunslinging . | . . . . . Exploded . | . . . . . Melee . | . . . . . Uniques/NPCs Destroyed . | . . . . . Combat | -11 -10 -10 -9 -8 -------- Run | Yrd Mat Min Mat Mat Hostile Shots Fired 277 | . 44 11 52 170 Missed 96 | . 11 6 19 60 Hits 181 | . 33 5 33 110 Melee 3 | . . . 2 1 Projectile 178 | . 33 5 31 109 AOE 1 | . . . 1 . Critical Strikes 3 | . 2 . . 1 Damage Taken 2352 | . 454 39 517 1342 Core 797 | . 35 12 200 550 Absorbed by Shields . | . . . . . Core Remaining (%) 77 | 100 . 81 50 . Volleys Fired 89 | . 5 5 38 41 Largest 2 | . 2 2 1 2 Hottest 112 | . 112 46 40 46 Shots Fired 108 | . 10 10 38 50 Gun 68 | . 8 10 . 50 Cannon 40 | . 2 . 38 . Launcher . | . . . . . Special . | . . . . . Kinetic 106 | . 8 10 38 50 Thermal . | . . . . . Explosive . | . . . . . Electromagnetic 2 | . 2 . . . Robot Hit Streak 10 | . 4 2 2 10 Robot Miss Streak 5 | . 1 5 5 3 Penetration Max . | . . . . . Secondary Targets 3 | . 1 1 . 1 Max Gunslinging Chain 1 | . 1 1 . 1 Shots Hit Robots 55 | . 6 3 11 35 Core Hits 34 | . 5 3 5 21 Critical Kills . | . . . . . Critical Parts Destroyed 2 | . . . 1 1 Critical Strikes 2 | . . . 1 1 Destroy 2 | . . . 1 1 Melee Attacks . | . . . . . Impact . | . . . . . Slashing . | . . . . . Piercing . | . . . . . Sneak Attacks . | . . . . . Combat Hostiles . | . . . . . Follow-up Attacks . | . . . . . Damage Inflicted 1131 | . 120 77 365 569 Guns 740 | . 95 77 . 568 Cannons 390 | . 25 . 365 . Explosions . | . . . . . Melee . | . . . . . Ramming 1 | . . . . 1 Kinetic 1105 | . 95 77 365 568 Thermal . | . . . . . Explosive . | . . . . . Electromagnetic 25 | . 25 . . . Impact . | . . . . . Slashing . | . . . . . Piercing . | . . . . . Highest Corruption 2 | . . . 2 . Average Corruption 2 | . . . 2 . Corruption Purged . | . . . . . Corruption Blocked . | . . . . . Effects 1 | . . . 1 . Energy Discharges 1 | . . . 1 . Overload Shots . | . . . . . Overflow Damage 14 | . . . 14 . Projectiles 14 | . . . 14 . Explosions . | . . . . . Melee . | . . . . . Knockbacks 6 | . . . 6 . Impact . | . . . . . Kinetic 6 | . . . 6 . Secondary . | . . . . . Self-Inflicted Damage . | . . . . . Shots . | . . . . . Rammed 1 | . . . . 1 Targets Rammed 2 | 1 . . . 1 Kicked 1 | 1 . . . . Crushed . | . . . . . Highest Temperature 60 | . 60 . 18 23 Average Temperature 15 | . 24 . 8 9 Received Heat Transfer 978 | . 276 . 216 486 Siege Activations . | . . . . . Martial Activations . | . . . . . Shielding Activations . | . . . . . Robots Disrupted . | . . . . . Combat Hostiles . | . . . . . Robots Corrupted . | . . . . . Combat Hostiles . | . . . . . Parts Fried . | . . . . . Impact Corruptions . | . . . . . Robots Melted . | . . . . . Combat Hostiles . | . . . . . Parts Melted . | . . . . . Heat Transferred . | . . . . . Parts Sabotaged . | . . . . . Parts Stolen . | . . . . . Parts Stripped . | . . . . . Power Chain Reactions . | . . . . . Alert | -11 -10 -10 -9 -8 ------- Run | Yrd Mat Min Mat Mat Maximum Alert Level . | . . . . . Low Security (%) 100 | 100 100 100 100 100 Level 1 . | . . . . . Level 2 . | . . . . . Level 3 . | . . . . . Level 4 . | . . . . . Level 5 . | . . . . . High Security . | . . . . . Max Security . | . . . . . Peak Influence 165 | . 45 83 51 165 Initial 13 | . . 13 . . Average 22 | . 1 30 11 55 Influence Increases 557 | . 65 70 147 275 Destroy 0b10 Robot/C 360 | . 40 60 60 200 Destroy 0b10 Robot/NC 10 | . . . 5 5 Destroy Leader 82 | . 10 10 22 40 Successful Hack 12 | . . . 12 . Disable Machine 75 | . 15 . 30 30 Destroy Structure 18 | . . . 18 . Influence Decreases 472 | . 30 105 147 190 Entered New Map 22 | . . 22 . . Time Decay 320 | . 10 83 127 100 Lost Part 130 | . 20 . 20 90 Squads Dispatched 3 | . 1 . 1 1 Investigation . | . . . . . Extermination . | . . . . . Reinforcement 3 | . 1 . 1 1 Assault . | . . . . . Garrison . | . . . . . Intercept . | . . . . . Searches Triggered . | . . . . . Construction Impeded . | . . . . . Haulers Reinforced . | . . . . . Active Scanning Responses . | . . . . . Cargo Convoy Interrupts . | . . . . . Stealth | -11 -10 -10 -9 -8 --------- Run | Yrd Mat Min Mat Mat Distress Signals 4 | . 3 . 1 . Communications Jammed . | . . . . . Distress Signals . | . . . . . Times Spotted 40 | . 8 2 8 22 Peak Tracking Total 8 | . 8 2 3 7 Tactical Retreats . | . . . . . Traps | -11 -10 -10 -9 -8 ------- Run | Yrd Mat Min Mat Mat Traps Triggered 3 | . 2 . 1 . Indirectly . | . . . . . Trap Hack Attempts . | . . . . . Triggered . | . . . . . Disarmed . | . . . . . Reprogrammed . | . . . . . Reused . | . . . . . Traps Extracted . | . . . . . Installed . | . . . . . Triggered . | . . . . . Machines | -11 -10 -10 -9 -8 ---------- Run | Yrd Mat Min Mat Mat Machines Disabled 5 | . 1 . 2 2 Max in Single Turn 1 | . 1 . 1 1 Machines Repaired . | . . . . . Machines Dismantled . | . . . . . Machines Sabotaged . | . . . . . Overloaded Fab Kills . | . . . . . Hacking | -11 -10 -10 -9 -8 --------- Run | Yrd Mat Min Mat Mat Machines Accessed 1 | . . . 1 . Terminals . | . . . . . Fabricators . | . . . . . Repair Stations . | . . . . . Recycling Units . | . . . . . Scanalyzers 1 | . . . 1 . Garrison Access . | . . . . . Total Hacks 1 | . . . 1 . Successful 1 | . . . 1 . Failed . | . . . . . Catastrophic . | . . . . . Database Lockouts . | . . . . . Manual . | . . . . . Terminals . | . . . . . Fabricators . | . . . . . Repair Stations . | . . . . . Recycling Units . | . . . . . Scanalyzers 1 | . . . 1 . Garrison Access . | . . . . . Terminal Hacks . | . . . . . Fabricator Hacks . | . . . . . Repair Station Hacks . | . . . . . Recycling Unit Hacks . | . . . . . Scanalyzer 1 | . . . 1 . Retrieve Study 1 | . . . 1 . Garrison Access Hacks . | . . . . . Unauthorized Hacks . | . . . . . Terminals . | . . . . . Fabricators . | . . . . . Repair Stations . | . . . . . Recycling Units . | . . . . . Scanalyzers . | . . . . . Garrison Access . | . . . . . Data Cores Recovered . | . . . . . Used . | . . . . . Hacking Detections . | . . . . . Full Trace Events . | . . . . . Feedback Events . | . . . . . Feedback Blocked . | . . . . . Robot Schematics Acquired . | . . . . . Robots Built . | . . . . . Authchips . | . . . . . Time . | . . . . . Total Robot Build Rating . | . . . . . Part Schematics Acquired . | . . . . . Parts Built . | . . . . . Authchips . | . . . . . Time . | . . . . . Total Part Build Rating . | . . . . . Part Studies Acquired 1 | . . . 1 . Parts Repaired . | . . . . . Time . | . . . . . Parts Recycled . | . . . . . Recycled Matter . | . . . . . Retrieved Matter . | . . . . . Retrieved Components . | . . . . . Parts Scanalyzed . | . . . . . Part Schematics Acquired . | . . . . . Parts Damaged . | . . . . . Bothacking | -11 -10 -10 -9 -8 ------------ Run | Yrd Mat Min Mat Mat Used RIF Installer . | . . . . . Robots Hacked . | . . . . . Non-combat . | . . . . . Combat . | . . . . . Robot Hacks Applied . | . . . . . Relay Couplers Released . | . . . . . Fabnet Peak Effective % . | . . . . . Robots Rewired . | . . . . . Allies Hacked . | . . . . . Hacks Repelled . | . . . . . Allies | -11 -10 -10 -9 -8 -------- Run | Yrd Mat Min Mat Mat Total Allies . | . . . . . Largest Group . | . . . . . Highest-Rated Group . | . . . . . Highest-Rated Ally . | . . . . . Total Orders . | . . . . . Ally Attacks . | . . . . . Total Damage . | . . . . . Kills . | . . . . . Allies Corrupted . | . . . . . Allies Melted . | . . . . . Intel | -11 -10 -10 -9 -8 ------- Run | Yrd Mat Min Mat Mat Active Infowar (turns) . | . . . . . Robot Analysis Total . | . . . . . Derelict Logs Recovered . | . . . . . Drone Launches . | . . . . . Drone Recoveries . | . . . . . Exploration | -11 -10 -10 -9 -8 ------------- Run | Yrd Mat Min Mat Mat Turns Passed 1347 | 66 269 237 451 324 Spaces Moved 748 | 52 197 115 194 190 Core 233 | 16 . . 73 144 Treads . | . . . . . Legs 515 | 36 197 115 121 46 Wheels . | . . . . . Hover . | . . . . . Flight . | . . . . . Fastest Speed 50 | 50 120 190 100 50 Average Speed 143 | 98 120 190 192 103 Slowest Speed 200 | 120 190 190 200 200 Overloaded Moves . | . . . . . Propulsion Burnouts . | . . . . . Robots Hopped . | . . . . . Potential Cave-ins . | . . . . . Cave-ins Triggered . | . . . . . Exploration Rate (%) 21 | 3 40 22 17 23 Regions Visited 4 Branch Regions 1 Pre-discovered Areas . | . . . . . Known Exits Taken . | . . . . . Unknown Exits Taken 4 | 1 1 1 1 . Scrap Searched . | . . . . . Spaces Dug . | . . . . . Terrain Destroyed 17 | . . . 17 . Melee . | . . . . . Projectile 17 | . . . 17 . AOE . | . . . . . Terrain Rammed . | . . . . . Walls Destroyed . | . . . . . Machines Disabled . | . . . . . Actions | -11 -10 -10 -9 -8 --------- Run | Yrd Mat Min Mat Mat Total 928 | 66 223 127 234 278 Wait 29 | 1 . 1 . 27 Move 744 | 51 196 114 193 190 Hop . | . . . . . Pick Up 27 | 7 10 2 2 6 Fast Attach . | . . . . . Attach 26 | 6 7 2 1 10 Detach 6 | . 3 2 . 1 Swap . | . . . . . Drop 5 | . 2 1 . 2 Fire 89 | . 5 5 38 41 Melee . | . . . . . Ram 1 | . . . . 1 Kick 1 | 1 . . . . Crush . | . . . . . Escape Stasis . | . . . . . Rewire . | . . . . . Trap . | . . . . . Miscellaneous . | . . . . . Route ------- -11/Scrapyard -10/Materials -10/Mines -9/Materials -8/Materials History --------- Turn | Location | Event 15 | -11/Scrapyard | Discovered new exit (range 15) 67 | -11/Scrapyard | Entered Materials 309 | -10/Materials | Build established: Mutant 315 | -10/Materials | Discovered new exit (range 6) 336 | -10/Materials | Entered Mines 363 | -10/Mines | Lost 3 parts (1p1n1w) 492 | -10/Mines | A weapon hastily lodged in a ceiling crevice suddenly fell to the ground 550 | -10/Mines | Discovered new exit (range 9) 573 | -10/Mines | Entered Materials 573 | -9/Materials | Evolved 2 slots: Propulsion x1, Utility x1 962 | -9/Materials | Discovered new exit (range 8) 1024 | -9/Materials | Entered another Materials area 1024 | -8/Materials | Evolved 2 slots: Propulsion x1, Utility x1 1304 | -8/Materials | Core integrity fell below 50% 1342 | -8/Materials | Core integrity fell below 20% 1348 | -8/Materials | Destroyed by S-10 Pest with Light Assault Rifle Last Messages --------------- Imp. Ion Engine destroyed. K-01 Serf collects debris. Autogun+ destroyed. R-06 Scavenger collects Lgt. Treads. Titanium Leg destroyed. K-01 Serf collects debris. R-06 Scavenger collects Hammer. G-47 Trooper destroyed. Recoil Stabilizer destroyed. R-06 Scavenger collects Particle Gun. Aluminum Leg destroyed. O-16 Technician: "IFF HANDSHAKE FAILED. SECURING TERMINAL." K-01 Serf collects debris. ALERT: Hostiles spotted, dispatching reinforcements to Terminal M007. Autogun+ destroyed. R-06 Scavenger collects Aluminum Leg. K-01 Serf collects debris. Critical hit (Burn: +37). Map ----- +----------------------------------------------------+ | #?????# #??????????????????????###?????????? | | #?????# #?????????????????????? #?????????? | | !#?????# #????????????????????? #?????????? | | " #?????+ #????????????????????? +?????????? | | " #?????# #????????????????????? #?????????? | | " #?????# #???????????????????? #?????????? | | #????## ##??????????????????? #??????????? | | ########## #################### #??????????? | | !%* #??????????? | | #??????????? | | %%%% #??????????? | | ########## !######### #??????????? | | ??????######+####?# #??????????? | | ??????# #?# #??????????? | | ??????# #?# T #??????????? | | ??????# "" #?# #??????????? | | ??????# "" "" #?# #####/#########??????????? | | ??????# """ """ #?## #??# ! #???????????????? | | ??????# """ """ #??# ???# T #???????????????? | | ??????# """ """ #??# ???# #???????????????? | | ??????# #??# ???# #???????????????? | | ??????###########??# ???# ! #???????????????? | | ???????????????????# ???# #???????????????? | | ???????????????????# g#######+######+### #????? | | ???????????????????# ???? | | ???????????????????# @ g g ???? | | ???????????????????# t g ???? | | ????????????????#######s#####################????? | | ????????????????# #?????????????????? | | ????????????????# ##?????????????????? | | ????????????????# !!! #??????????????????? | | ????????????????# !!! #??????????????????? | | ????????????????# [ !!! #??????????????????? | | ????????????????# #??????????????????? | | ????????????????###############??????????????????? | | | | | | | | | | | | | | | | | | | | | | | | | | | | | | | +----------------------------------------------------+ Best States ------------- Heat Dissipation 31 Energy Generation 12 Energy Capacity 265 Matter Stores 300 Matter Capacity 300 Sight Range 16 Terrain Scan Density 10 Evasion (%) 55 Recoil Reduction 4 Offensive Hacking 10 Item Schematics ----------------- None Robot Schematics ------------------ None Fabricated ------------ Nothing Repaired ---------- Nothing Studied --------- Autogun | -9/Materials | Hacked Alien Tech Used ----------------- None Achievements -------------- None Challenges ------------ None Game ------ Seed WarlordLayeredMask Manual? 0 Play Time 00:25:16 Cumulative 4.2 hours Start 2026.09.13 @ 22:23:44 End 2026.09.13 @ 22:52:50 Sessions 1 Manual Loads 0 Difficulty Rogue Special Mode None Game No. 10 Rogue 10 Adventurer 0 Explorer 0 Win Type - Total 0 Types 0/0/0/0/0/0/0/0/0/0 Lore% 1 Gallery% 5 Achievement% 6 Wizard Run 0 Options --------- Layout 1 ASCII 0 Keyboard 1 Movement Numpad Keybinds 0 Fullscreen 1 Font 24/Smallcaps Map View 50x35 Zoom Use 0% Tactical HUD 0 Map Filters NONE Filters NONE Steam 1 RUN: 5da8ab4a-6d5d-439c-9375-ef195c838742